fUST/lending_fUST_20250715
["ID","MTS","AMOUNT","RATE_DAILY","PERIOD"]
[372110559,1752523858381,-151.677649,0.00019304,2]
[372110561,1752523858390,-151.0,0.00019328,2]
[372110563,1752523858399,-151.0,0.00019328,2]
[372110565,1752523858409,-151.0,0.00019329,2]
[372110567,1752523858418,-151.0,0.00019329,2]
[372110569,1752523858427,-151.0,0.00019329,2]
[372110571,1752523858436,-529.207943,0.00019329,2]
[372110573,1752523858448,-529.207943,0.00019329,2]
[372110575,1752523858457,-151.0,0.00019329,2]
[372110578,1752523858467,-26263.35574497,0.00019329,2]
[372110579,1752523858476,-800.0,0.00019346,2]
[372110581,1752523858485,-363.00172712,0.00019348,2]
[372110583,1752523858495,-4899.4222743,0.00019348,2]
[372110585,1752523858504,-389.0,0.00019357,2]
[372110587,1752523858514,-600.0,0.00019368,2]
[372110590,1752523858524,-800.0,0.00019403,2]
[372110591,1752523858533,-151.0,0.00019404,2]
[372110593,1752523858542,-151.0,0.00019404,2]
[372110606,1752523858646,-151.0,0.00019404,2]
[372110608,1752523858656,-151.0,0.00019404,2]
[372110610,1752523858665,-151.0,0.00019404,2]
[372110611,1752523858675,-151.0,0.00019404,2]
[372110614,1752523858684,-151.0,0.00019404,2]
[372110616,1752523858693,-151.0,0.00019404,2]
[372110618,1752523858702,-390.351367,0.00019404,2]
[372110620,1752523858712,-390.351367,0.00019404,2]
[372110622,1752523858721,-151.0,0.00019404,2]
[372110624,1752523858730,-151.0,0.00019404,2]
[372110626,1752523858740,-151.0,0.00019404,2]
[372110628,1752523858749,-151.0,0.00019404,2]
[372110630,1752523858759,-151.0,0.00019404,2]
[372110632,1752523858768,-151.0,0.00019404,2]
[372110634,1752523858778,-151.0,0.00019404,2]
[372110636,1752523858788,-151.0,0.00019404,2]
[372110638,1752523858797,-151.0,0.00019404,2]
[372110640,1752523858807,-211.666789,0.00019404,2]
[372110642,1752523858817,-151.0,0.00019404,2]
[372110644,1752523858827,-151.0,0.00019404,2]
[372110646,1752523858836,-151.0,0.00019404,2]
[372110648,1752523858846,-207.87178,0.00019404,2]
[372110650,1752523858855,-207.87178,0.00019404,2]
[372110652,1752523858866,-151.0,0.00019404,2]
[372110654,1752523858876,-151.0,0.00019404,2]
[372110656,1752523858886,-151.0,0.00019404,2]
[372110658,1752523858896,-151.0,0.00019404,2]
[372110660,1752523858905,-151.0,0.00019404,2]
[372110662,1752523858915,-151.0,0.00019404,2]
[372110664,1752523858924,-151.0,0.00019404,2]
[372110666,1752523858934,-151.0,0.00019404,2]
[372110668,1752523858943,-151.0,0.00019404,2]
[372110670,1752523858953,-151.0,0.00019404,2]
[372110672,1752523858962,-151.0,0.00019404,2]
[372110674,1752523858972,-151.0,0.00019404,2]
[372110676,1752523858982,-204.160184,0.00019404,2]
[372110678,1752523858991,-151.0,0.00019404,2]
[372110680,1752523859000,-151.0,0.00019404,2]
[372110682,1752523859010,-151.0,0.00019404,2]
[372110684,1752523859019,-151.0,0.00019404,2]
[372110686,1752523859028,-151.0,0.00019404,2]
[372110688,1752523859037,-260.007,0.00019404,2]
[372110690,1752523859046,-193.203456,0.00019404,2]
[372110692,1752523859055,-193.203456,0.00019404,2]
[372110694,1752523859064,-193.203456,0.00019404,2]
[372110696,1752523859074,-193.203456,0.00019404,2]
[372110698,1752523859083,-193.203456,0.00019404,2]
[372110700,1752523859093,-193.203456,0.00019404,2]
[372110702,1752523859101,-193.203456,0.00019404,2]
[372110704,1752523859110,-283.335264,0.00019404,2]
[372110706,1752523859119,-283.335264,0.00019404,2]
[372110708,1752523859128,-283.335264,0.00019404,2]
[372110710,1752523859143,-283.335264,0.00019404,2]
[372110712,1752523859153,-193.203456,0.00019404,2]
[372110714,1752523859162,-283.335264,0.00019404,2]
[372110716,1752523859172,-283.335264,0.00019404,2]
[372110718,1752523859184,-283.335264,0.00019404,2]
[372110720,1752523859193,-283.335264,0.00019404,2]
[372110722,1752523859202,-457.320865,0.00019404,2]
[372110724,1752523859212,-457.320865,0.00019404,2]
[372110726,1752523859221,-457.320865,0.00019404,2]
[372110728,1752523859230,-457.320865,0.00019404,2]
[372110731,1752523859250,-457.320865,0.00019404,2]
[372110733,1752523859261,-457.320865,0.00019404,2]
[372110735,1752523859271,-457.320865,0.00019404,2]
[372110737,1752523859283,-457.320865,0.00019404,2]
[372110740,1752523859295,-457.320865,0.00019404,2]
[372110742,1752523859304,-457.320865,0.00019404,2]
[372110744,1752523859314,-224.902329,0.00019404,2]
[372110746,1752523859324,-224.902329,0.00019404,2]
[372110748,1752523859334,-224.902329,0.00019404,2]
[372110750,1752523859344,-224.902329,0.00019404,2]
[372110752,1752523859353,-224.902329,0.00019404,2]
[372110754,1752523859363,-224.902329,0.00019404,2]
[372110756,1752523859372,-224.902329,0.00019404,2]
[372110758,1752523859382,-224.902329,0.00019404,2]
[372110760,1752523859391,-224.902329,0.00019404,2]
[372110762,1752523859401,-224.902329,0.00019404,2]
[372110764,1752523859410,-474.9,0.00019434,2]
[372110766,1752523859419,-800.0,0.0001944,2]
[372110768,1752523859428,-457.320865,0.00019451,2]
[372110770,1752523859438,-457.320866,0.00019451,2]
[372110772,1752523859448,-224.902329,0.00019451,2]
[372110774,1752523859458,-5652.61,0.00019451,2]
[372110776,1752523859467,-224.902327,0.00019451,2]
[372110778,1752523859477,-979.19,0.00019451,2]
[372110780,1752523859487,-766.81,0.00019451,2]
[372110782,1752523859496,-1570.24,0.00019451,2]
[372110784,1752523859506,-1140.82,0.00019451,2]
[372110786,1752523859516,-460.0,0.00019452,2]
[372110788,1752523859526,-460.0,0.00019452,2]
[372110790,1752523859535,-460.0,0.00019452,2]
[372110792,1752523859545,-460.0,0.00019452,2]
[372110794,1752523859555,-460.0,0.00019452,2]
[372110796,1752523859565,-460.0,0.00019452,2]
[372110798,1752523859574,-460.0,0.00019452,2]
[372110800,1752523859583,-249.17,0.00019452,2]
[372110802,1752523859593,-488.69,0.00019452,2]
[372110804,1752523859603,-460.0,0.00019452,2]
[372110806,1752523859613,-460.0,0.00019452,2]
[372110808,1752523859622,-514.19,0.00019452,2]
[372110810,1752523859631,-460.0,0.00019452,2]
[372110812,1752523859641,-557.41,0.00019452,2]
[372110814,1752523859651,-460.0,0.00019452,2]
[372110816,1752523859660,-796.36,0.00019452,2]
[372110818,1752523859670,-460.0,0.00019452,2]
[372110820,1752523859679,-841.78,0.00019452,2]
[372110822,1752523859689,-460.0,0.00019452,2]
[372110824,1752523859699,-460.0,0.00019452,2]
[372110826,1752523859710,-460.0,0.00019452,2]
[372110828,1752523859720,-752.74,0.00019452,2]
[372110830,1752523859729,-2405.54,0.00019452,2]
[372110832,1752523859738,-508.83,0.00019452,2]
[372110834,1752523859748,-460.0,0.00019452,2]
[372110836,1752523859758,-460.0,0.00019452,2]
[372110838,1752523859767,-936.8,0.00019452,2]
[372110840,1752523859777,-986.06,0.00019452,2]
[372110842,1752523859787,-751.76,0.00019452,2]
[372110844,1752523859796,-1466.15,0.00019452,2]
[372110846,1752523859806,-492.2,0.00019452,2]
[372110848,1752523859816,-3285.73,0.00019452,2]
[372110850,1752523859827,-981.45,0.00019452,2]
[372110853,1752523859836,-460.0,0.00019452,2]
[372110855,1752523859846,-968.1,0.00019452,2]
[372110857,1752523859856,-4398.49,0.00019452,2]
[372110859,1752523859866,-4209.19,0.00019452,2]
[372110861,1752523859875,-460.0,0.00019452,2]
[372110863,1752523859885,-481.24,0.00019452,2]
[372110865,1752523859895,-468.4,0.00019452,2]
[372110867,1752523859904,-645.53,0.00019452,2]
[372110869,1752523859914,-593.17,0.00019452,2]
[372110871,1752523859923,-460.0,0.00019452,2]
[372110873,1752523859934,-1221.52,0.00019452,2]
[372110875,1752523859943,-621.62,0.00019452,2]
[372110877,1752523859952,-2631.55,0.00019452,2]
[372110879,1752523859961,-1620.37,0.00019452,2]
[372110881,1752523859971,-460.0,0.00019452,2]
[372110883,1752523859980,-460.0,0.00019452,2]
[372110885,1752523859989,-576.25,0.00019452,2]
[372110887,1752523859999,-460.0,0.00019452,2]
[372110889,1752523860008,-513.51,0.00019452,2]
[372110890,1752523860018,-1752.1,0.00019452,2]
[372110892,1752523860027,-460.0,0.00019452,2]
[372110895,1752523860037,-460.0,0.00019452,2]
[372110896,1752523860047,-489.86,0.00019452,2]
[372110899,1752523860056,-460.0,0.00019452,2]
[372110901,1752523860066,-701.36,0.00019452,2]
[372110903,1752523860076,-460.0,0.00019452,2]
[372110905,1752523860086,-460.0,0.00019452,2]
[372110907,1752523860095,-1583.58,0.00019452,2]
[372110909,1752523860108,-822.66,0.00019452,2]
[372110911,1752523860127,-460.0,0.00019452,2]
[372110913,1752523860146,-634.84,0.00019452,2]
[372110915,1752523860160,-779.7,0.00019452,2]
[372110917,1752523860169,-519.83,0.00019452,2]
[372110919,1752523860179,-389.0,0.0001946,2]
[372110921,1752523860189,-389.0,0.00019467,2]
[372110923,1752523860199,-500.0,0.00019473,2]
[372110925,1752523860210,-500.0,0.00019473,2]
[372110927,1752523860219,-500.0,0.00019473,2]
[372110929,1752523860229,-580.93774563,0.00019473,2]
[372110931,1752523860239,-500.0,0.00019473,2]
[372110933,1752523860248,-638.0285363,0.00019473,2]
[372110935,1752523860258,-500.0,0.00019473,2]
[372110937,1752523860271,-500.0,0.00019473,2]
[372110939,1752523860280,-500.0,0.00019473,2]
[372110941,1752523860290,-500.0,0.00019473,2]
[372110944,1752523860300,-500.0,0.00019473,2]
[372110946,1752523860310,-500.0,0.00019473,2]
[372110948,1752523860320,-389.0,0.00019475,2]
[372110950,1752523860330,-34976.06,0.0001949,7]
[372110952,1752523860340,-151.0,0.0001949,2]
[372110954,1752523860349,-151.0,0.0001949,2]
[372110956,1752523860359,-219.878768,0.0001949,2]
[372110958,1752523860372,-151.0,0.0001949,2]
[372110960,1752523860382,-219.878768,0.0001949,2]
[372110962,1752523860392,-151.0,0.0001949,2]
[372110964,1752523860401,-529.207943,0.0001949,2]
[372110966,1752523860410,-529.207943,0.0001949,2]
[372110982,1752523860550,-390.351367,0.0001949,2]
[372110984,1752523860560,-390.351367,0.0001949,2]
[372110986,1752523860569,-151.0,0.0001949,2]
[372110988,1752523860579,-151.0,0.0001949,2]
[372110990,1752523860588,-151.0,0.0001949,2]
[372110992,1752523860597,-151.0,0.0001949,2]
[372110994,1752523860607,-239.716973,0.0001949,2]
[372110996,1752523860619,-151.0,0.0001949,2]
[372110998,1752523860629,-151.0,0.0001949,2]
[372111000,1752523860638,-151.0,0.0001949,2]
[372111002,1752523860647,-151.0,0.0001949,2]
[372111004,1752523860657,-1810068.41215638,0.000195,2]
[372111006,1752523860666,-151.0,0.000195,2]
[372111008,1752523860676,-151.0,0.000195,2]
[372111010,1752523860685,-278.45104,0.000195,2]
[372111012,1752523860694,-151.0,0.000195,2]
[372111014,1752523860703,-151.0,0.000195,2]
[372111016,1752523860713,-219.878768,0.000195,2]
[372111017,1752523860723,-151.0,0.000195,2]
[372111018,1752523860734,-219.878768,0.000195,2]
[372111019,1752523860743,-151.0,0.000195,2]
[372111020,1752523860752,-529.207943,0.000195,2]
[372111021,1752523860761,-529.207943,0.000195,2]
[372111022,1752523860770,-390.351367,0.000195,2]
[372111023,1752523860779,-390.351367,0.000195,2]
[372111024,1752523860788,-151.0,0.000195,2]
[372111025,1752523860797,-151.0,0.000195,2]
[372111026,1752523860806,-151.0,0.000195,2]
[372111027,1752523860815,-151.0,0.000195,2]
[372111028,1752523860824,-151.0,0.000195,2]
[372111029,1752523860834,-207.87178,0.000195,2]
[372111030,1752523860843,-207.87178,0.000195,2]
[372111031,1752523860852,-151.0,0.000195,2]
[372111032,1752523860861,-174.27303,0.000195,2]
[372111033,1752523860870,-174.27303,0.000195,2]
[372111034,1752523860879,-151.0,0.000195,2]
[372111035,1752523860889,-267.853851,0.000195,2]
[372111036,1752523860898,-151.0,0.000195,2]
[372111037,1752523860907,-151.0,0.000195,2]
[372111038,1752523860916,-151.0,0.000195,2]
[372111039,1752523860925,-151.0,0.000195,2]
[372111041,1752523860935,-193.203456,0.000195,2]
[372111042,1752523860944,-283.335264,0.000195,2]
[372111043,1752523860954,-193.203456,0.000195,2]
[372111044,1752523860963,-283.335264,0.000195,2]
[372111046,1752523860972,-214.33456592,0.000195,7]
[372111047,1752523860981,-1000.0,0.000195,2]
[372111049,1752523860991,-151.0,0.00019509,3]
[372111051,1752523861000,-604.43985556,0.00019568,2]
[372111053,1752523861010,-800.0,0.00019593,2]
[372111055,1752523861020,-1268899.153289,0.000196,2]
[372111057,1752523861029,-1718.83272436,0.00019604,2]
[372111059,1752523861040,-200.0,0.0001963,2]
[372111061,1752523861050,-1000.0,0.00019642,2]
[372111063,1752523861059,-4899.4222743,0.00019693,2]
[372111065,1752523861070,-389.0,0.00019695,2]
[372111067,1752523861082,-153.4064347,0.000197,14]
[372111069,1752523861091,-389.0,0.00019711,2]
[372111071,1752523861100,-5652.61,0.00019725,2]
[372111073,1752523861110,-979.19,0.00019725,2]
[372111075,1752523861123,-766.81,0.00019725,2]
[372111077,1752523861132,-1570.24,0.00019725,2]
[372111079,1752523861145,-1140.82,0.00019725,2]
[372111081,1752523861154,-380.0,0.00019726,2]
[372111083,1752523861163,-460.0,0.00019726,2]
[372111085,1752523861173,-460.0,0.00019726,2]
[372111087,1752523861184,-460.0,0.00019726,2]
[372111089,1752523861193,-460.0,0.00019726,2]
[372111091,1752523861203,-460.0,0.00019726,2]
[372111093,1752523861214,-488.69,0.00019726,2]
[372111095,1752523861224,-460.0,0.00019726,2]
[372111097,1752523861234,-460.0,0.00019726,2]
[372111099,1752523861244,-514.19,0.00019726,2]
[372111101,1752523861253,-460.0,0.00019726,2]
[372111103,1752523861263,-557.41,0.00019726,2]
[372111105,1752523861273,-460.0,0.00019726,2]
[372111107,1752523861282,-796.36,0.00019726,2]
[372111109,1752523861291,-460.0,0.00019726,2]
[372111111,1752523861301,-841.78,0.00019726,2]
[372111113,1752523861310,-460.0,0.00019726,2]
[372111115,1752523861320,-460.0,0.00019726,2]
[372111117,1752523861329,-460.0,0.00019726,2]
[372111119,1752523861339,-752.74,0.00019726,2]
[372111121,1752523861348,-2405.54,0.00019726,2]
[372111123,1752523861357,-508.83,0.00019726,2]
[372111125,1752523861368,-460.0,0.00019726,2]
[372111127,1752523861378,-460.0,0.00019726,2]
[372111129,1752523861387,-936.8,0.00019726,2]
[372111131,1752523861396,-986.06,0.00019726,2]
[372111133,1752523861405,-751.76,0.00019726,2]
[372111135,1752523861415,-1466.15,0.00019726,2]
[372111137,1752523861424,-492.2,0.00019726,2]
[372111139,1752523861434,-3285.73,0.00019726,2]
[372111141,1752523861443,-981.45,0.00019726,2]
[372111143,1752523861453,-551.7,0.00019726,2]
[372111145,1752523861462,-968.1,0.00019726,2]
[372111147,1752523861472,-4398.49,0.00019726,2]
[372111149,1752523861482,-4209.19,0.00019726,2]
[372111151,1752523861494,-406.45,0.00019726,2]
[372111153,1752523861508,-481.24,0.00019726,2]
[372111155,1752523861517,-468.4,0.00019726,2]
[372111157,1752523861527,-645.53,0.00019726,2]
[372111159,1752523861536,-593.17,0.00019726,2]
[372111161,1752523861546,-165.05,0.00019726,2]
[372111163,1752523861555,-1221.52,0.00019726,2]
[372111165,1752523861565,-621.62,0.00019726,2]
[372111167,1752523861575,-2631.55,0.00019726,2]
[372111169,1752523861584,-1620.37,0.00019726,2]
[372111171,1752523861594,-460.0,0.00019726,2]
[372111173,1752523861603,-386.07424632,0.00019726,2]
[372111175,1752523861613,-576.25,0.00019726,2]
[372111177,1752523861623,-460.0,0.00019726,2]
[372111179,1752523861632,-513.51,0.00019726,2]
[372111181,1752523861642,-1752.1,0.00019726,2]
[372111183,1752523861651,-460.0,0.00019726,2]
[372111185,1752523861661,-266.7209629,0.00019726,2]
[372111187,1752523861671,-489.86,0.00019726,2]
[372111189,1752523861680,-460.0,0.00019726,2]
[372111191,1752523861690,-701.36,0.00019726,2]
[372111193,1752523861700,-460.0,0.00019726,2]
[372111195,1752523861710,-460.0,0.00019726,2]
[372111197,1752523861720,-1583.58,0.00019726,2]
[372111199,1752523861730,-822.66,0.00019726,2]
[372111201,1752523861740,-523.44878283,0.00019726,2]
[372111203,1752523861749,-634.84,0.00019726,2]
[372111205,1752523861759,-779.7,0.00019726,2]
[372111207,1752523861768,-519.83,0.00019726,2]
[372111209,1752523861778,-151.0,0.00019755,3]
[372111211,1752523861787,-460.0,0.00019777,2]
[372111213,1752523861797,-1000.0,0.00019788,2]
[372111215,1752523861806,-937.0,0.000198,2]
[372111217,1752523861816,-937.0,0.000198,2]
[372111219,1752523861826,-937.0,0.000198,2]
[372111221,1752523861835,-937.0,0.000198,2]
[372111223,1752523861844,-937.0,0.000198,2]
[372111225,1752523861853,-937.0,0.000198,2]
[372111227,1752523861864,-937.0,0.000198,2]
[372111229,1752523861874,-937.0,0.000198,2]
[372111231,1752523861883,-937.0,0.000198,2]
[372111233,1752523861893,-937.0,0.000198,2]
[372111235,1752523861903,-1751.0,0.000198,2]
[372111237,1752523861914,-1751.0,0.000198,2]
[372111239,1752523861924,-1751.0,0.000198,2]
[372111241,1752523861934,-1751.0,0.000198,2]
[372111243,1752523861944,-1751.0,0.000198,2]
[372111245,1752523861954,-1751.0,0.000198,2]
[372111247,1752523861963,-1751.0,0.000198,2]
[372111249,1752523861972,-1751.0,0.000198,2]
[372111251,1752523861981,-1751.0,0.000198,2]
[372111253,1752523861990,-1751.0,0.000198,2]
[372111255,1752523862000,-1751.0,0.000198,2]
[372111257,1752523862010,-154.0,0.000198,2]
[372111259,1752523862020,-1751.0,0.000198,2]
[372111261,1752523862029,-1751.0,0.000198,2]
[372111263,1752523862038,-1751.0,0.000198,2]
[372111265,1752523862047,-1751.0,0.000198,2]
[372111267,1752523862056,-1751.0,0.000198,2]
[372111269,1752523862065,-318.0,0.000198,2]
[372111271,1752523862074,-318.0,0.000198,2]
[372111273,1752523862083,-318.0,0.000198,2]
[372111275,1752523862092,-160.0,0.000198,2]
[372111277,1752523862102,-2570.17636328,0.00019807,2]
[372111279,1752523862113,-3000.0,0.00019841,2]
[372111281,1752523862126,-389.0,0.00019889,2]
[372111283,1752523862139,-642.0,0.000199,2]
[372111294,1752523862233,-290.15223794,0.000199,2]
[372111296,1752523862243,-5000.0,0.00019926,2]
[372111298,1752523862254,-223.0315306,0.00019989,2]
[372111300,1752523862263,-80669.76736073,0.00019989,2]
[372111302,1752523862272,-155.012692,0.00019989,2]
[372111304,1752523862282,-151.0,0.00019989,2]
[372111306,1752523862292,-151.0,0.00019989,2]
[372111308,1752523862301,-207.87178,0.00019989,2]
[372111310,1752523862310,-207.87178,0.00019989,2]
[372111312,1752523862321,-151.0,0.00019989,2]
[372111314,1752523862331,-174.27303,0.00019989,2]
[372111316,1752523862341,-174.27303,0.00019989,2]
[372111318,1752523862350,-151.0,0.00019989,2]
[372111320,1752523862360,-151.0,0.00019989,2]
[372111322,1752523862373,-151.0,0.00019989,2]
[372111324,1752523862382,-6000.0,0.00019992,2]
[372111326,1752523862392,-5652.61,0.00019999,2]
[372111328,1752523862401,-979.19,0.00019999,2]
[372111330,1752523862410,-766.81,0.00019999,2]
[372111332,1752523862420,-1570.24,0.00019999,2]
[372111334,1752523862429,-1140.82,0.00019999,2]
[372111336,1752523862438,-51637.63458602,0.0002,5]
[372111338,1752523862448,-408.27103929,0.0002,5]
[372111340,1752523862457,-5951.49809468,0.0002,7]
[372111342,1752523862466,-152.0,0.0002,2]
[372111344,1752523862476,-184359.69037594,0.0002,2]
[372111346,1752523862485,-453.38,0.0002,4]
[372111348,1752523862496,-7201.76551019,0.0002,10]
[372111350,1752523862505,-1000.0,0.0002,2]
[372111352,1752523862515,-11356.2575591,0.0002,2]
[372111354,1752523862525,-205.0,0.0002,2]
[372111356,1752523862534,-205.0,0.0002,2]
[372111358,1752523862543,-205.0,0.0002,2]
[372111360,1752523862553,-205.0,0.0002,2]
[372111362,1752523862562,-205.0,0.0002,2]
[372111364,1752523862571,-205.0,0.0002,2]
[372111366,1752523862580,-205.0,0.0002,2]
[372111368,1752523862589,-205.0,0.0002,2]
[372111370,1752523862599,-205.0,0.0002,2]
[372111371,1752523862608,-292.256684,0.0002,2]
[372111373,1752523862619,-151.0,0.0002,2]
[372111375,1752523862628,-151.0,0.0002,2]
[372111377,1752523862638,-2000.0,0.0002,2]
[372111379,1752523862648,-151.0,0.0002,2]
[372111381,1752523862657,-151.0,0.0002,2]
[372111383,1752523862667,-219.878768,0.0002,2]
[372111385,1752523862676,-151.0,0.0002,2]
[372111387,1752523862685,-219.878768,0.0002,2]
[372111389,1752523862696,-191.018298,0.0002,2]
[372111391,1752523862705,-529.207943,0.0002,2]
[372111393,1752523862715,-529.207943,0.0002,2]
[372111395,1752523862725,-390.351367,0.0002,2]
[372111397,1752523862735,-390.351367,0.0002,2]
[372111399,1752523862745,-390.351367,0.0002,2]
[372111401,1752523862755,-390.351367,0.0002,2]
[372111403,1752523862764,-151.0,0.0002,2]
[372111405,1752523862774,-151.0,0.0002,2]
[372111407,1752523862784,-151.0,0.0002,2]
[372111409,1752523862793,-243.543829,0.0002,2]
[372111411,1752523862802,-151.0,0.0002,2]
[372111413,1752523862811,-151.0,0.0002,2]
[372111415,1752523862820,-207.87178,0.0002,2]
[372111417,1752523862830,-207.87178,0.0002,2]
[372111419,1752523862839,-460.0,0.0002,2]
[372111421,1752523862850,-151.0,0.0002,2]
[372111423,1752523862861,-222.78842948,0.0002,2]
[372111425,1752523862878,-174.27303,0.0002,2]
[372111427,1752523862888,-174.27303,0.0002,2]
[372111429,1752523862897,-151.0,0.0002,2]
[372111431,1752523862907,-151.090708,0.0002,2]
[372111433,1752523862916,-4000.0,0.0002,4]
[372111435,1752523862926,-460.0,0.0002,2]
[372111437,1752523862935,-151.0,0.0002,2]
[372111439,1752523862944,-460.0,0.0002,2]
[372111441,1752523862954,-151.0,0.0002,2]
[372111443,1752523862964,-460.0,0.0002,2]
[372111445,1752523862973,-488.69,0.0002,2]
[372111448,1752523862983,-193.203456,0.0002,2]
[372111449,1752523862992,-1500.0,0.0002,7]
[372111451,1752523863002,-1500.0,0.0002,7]
[372111453,1752523863011,-1500.0,0.0002,7]
[372111455,1752523863020,-1500.0,0.0002,7]
[372111457,1752523863029,-1500.0,0.0002,7]
[372111459,1752523863039,-1500.0,0.0002,7]
[372111461,1752523863048,-1500.0,0.0002,7]
[372111463,1752523863058,-1500.0,0.0002,7]
[372111465,1752523863067,-1500.0,0.0002,7]
[372111467,1752523863077,-1500.0,0.0002,7]
[372111469,1752523863086,-1500.0,0.0002,7]
[372111471,1752523863096,-1500.0,0.0002,7]
[372111473,1752523863106,-1500.0,0.0002,7]
[372111475,1752523863119,-1500.0,0.0002,7]
[372111477,1752523863129,-1500.0,0.0002,7]
[372111479,1752523863146,-1500.0,0.0002,7]
[372111481,1752523863157,-1500.0,0.0002,7]
[372111483,1752523863166,-1500.0,0.0002,7]
[372111485,1752523863176,-1500.0,0.0002,7]
[372111487,1752523863186,-1500.0,0.0002,7]
[372111489,1752523863196,-1500.0,0.0002,7]
[372111491,1752523863205,-460.0,0.0002,2]
[372111493,1752523863215,-283.335264,0.0002,2]
[372111495,1752523863225,-193.203456,0.0002,2]
[372111497,1752523863234,-283.335264,0.0002,2]
[372111499,1752523863244,-460.0,0.0002,2]
[372111501,1752523863254,-514.19,0.0002,2]
[372111503,1752523863263,-460.0,0.0002,2]
[372111505,1752523863272,-557.41,0.0002,2]
[372111507,1752523863282,-460.0,0.0002,2]
[372111509,1752523863291,-796.36,0.0002,2]
[372111510,1752523863300,-460.0,0.0002,2]
[372111512,1752523863309,-841.78,0.0002,2]
[372111514,1752523863319,-460.0,0.0002,2]
[372111516,1752523863328,-460.0,0.0002,2]
[372111518,1752523863338,-379.6031864,0.0002,2]
[372111520,1752523863347,-151.54394486,0.0002,2]
[372111522,1752523863357,-752.74,0.0002,2]
[372111525,1752523863368,-2405.54,0.0002,2]
[372111527,1752523863378,-1000.0,0.0002,2]
[372111528,1752523863388,-151.0,0.0002,3]
[372111530,1752523863398,-508.83,0.0002,2]
[372111532,1752523863408,-460.0,0.0002,2]
[372111535,1752523863418,-300.0,0.0002,2]
[372111536,1752523863428,-460.0,0.0002,2]
[372111538,1752523863438,-936.8,0.0002,2]
[372111540,1752523863447,-986.06,0.0002,2]
[372111542,1752523863456,-751.76,0.0002,2]
[372111544,1752523863466,-1466.15,0.0002,2]
[372111546,1752523863475,-492.2,0.0002,2]
[372111548,1752523863484,-3285.73,0.0002,2]
[372111550,1752523863494,-981.45,0.0002,2]
[372111551,1752523863503,-968.1,0.0002,2]
[372111552,1752523863512,-4398.49,0.0002,2]
[372111553,1752523863522,-4209.19,0.0002,2]
[372111554,1752523863532,-468.4,0.0002,2]
[372111555,1752523863542,-481.24,0.0002,2]
[372111556,1752523863552,-645.53,0.0002,2]
[372111557,1752523863562,-593.17,0.0002,2]
[372111558,1752523863573,-1221.52,0.0002,2]